[Event "Titled Tuesday Blitz September 13 Early 2022"]
[White "Goltsev, Dmitry"]
[Black "Weetik, Vjacheslav"]
[WhiteFideId "24176710"]
[BlackFideId "4153472"]
[WhiteElo "2257"]
[BlackElo "2469"]
[Result "1-0"]
[Round "07"]
[TimeControl "180+1"]
[Date "2022.09.13"]
[WhiteClock "0:01:50"]
[BlackClock "0:00:23"]

1. e4 {[%clk 0:02:59]}  c5 {[%clk 0:02:59]} 2. Nf3 {[%clk 0:02:59]}  Nc6 {[%clk 0:02:59]} 3. d4 {[%clk 0:02:59]}  cxd4 {[%clk 0:03:00]} 4. Nxd4 {[%clk 0:03:00]}  g6 {[%clk 0:03:00]} 5. Nc3 {[%clk 0:03:00]}  Bg7 {[%clk 0:03:00]} 6. Be3 {[%clk 0:03:01]}  Nf6 {[%clk 0:03:01]} 7. Be2 {[%clk 0:03:01]}  O-O {[%clk 0:02:59]} 8. O-O {[%clk 0:03:01]}  d5 {[%clk 0:02:58]} 9. exd5 {[%clk 0:03:02]}  Nxd5 {[%clk 0:02:58]} 10. Nxd5 {[%clk 0:02:57]}  Qxd5 {[%clk 0:02:58]} 11. Bf3 {[%clk 0:02:56]}  Qc4 {[%clk 0:02:53]} 12. Nxc6 {[%clk 0:02:56]}  bxc6 {[%clk 0:02:52]} 13. c3 {[%clk 0:02:57]}  Bf5 {[%clk 0:02:43]} 14. Qb3 {[%clk 0:02:56]}  Qa6 {[%clk 0:02:24]} 15. Qb4 {[%clk 0:02:56]}  Rab8 {[%clk 0:02:20]} 16. Qxe7 {[%clk 0:02:56]}  Rxb2 {[%clk 0:02:19]} 17. Qxa7 {[%clk 0:02:53]}  Qxa7 {[%clk 0:02:18]} 18. Bxa7 {[%clk 0:02:54]}  Bxc3 {[%clk 0:02:17]} 19. Bxc6 {[%clk 0:02:53]}  Rd8 {[%clk 0:01:54]} 20. a4 {[%clk 0:02:31]}  Ba5 {[%clk 0:01:41]} 21. Be3 {[%clk 0:02:26]}  h5 {[%clk 0:01:34]} 22. h3 {[%clk 0:02:19]}  h4 {[%clk 0:01:33]} 23. Rfd1 {[%clk 0:02:18]}  Rc8 {[%clk 0:01:32]} 24. Bb5 {[%clk 0:02:14]}  f6 {[%clk 0:00:50]} 25. Bd4 {[%clk 0:02:06]}  Bc3 {[%clk 0:00:49]} 26. Rac1 {[%clk 0:02:01]}  Bxd4 {[%clk 0:00:46]} 27. Rxc8+ {[%clk 0:02:02]}  Bxc8 {[%clk 0:00:47]} 28. Rxd4 {[%clk 0:02:03]}  Bf5 {[%clk 0:00:39]} 29. Rxh4 {[%clk 0:02:02]}  Kg7 {[%clk 0:00:33]} 30. Rd4 {[%clk 0:02:01]}  Bc2 {[%clk 0:00:32]} 31. Rd2 {[%clk 0:01:57]}  Rb1+ {[%clk 0:00:31]} 32. Kh2 {[%clk 0:01:58]}  Bb3 {[%clk 0:00:30]} 33. Rd7+ {[%clk 0:01:58]}  Kh6 {[%clk 0:00:30]} 34. Rd6 {[%clk 0:01:56]}  Kg7 {[%clk 0:00:28]} 35. Kg3 {[%clk 0:01:52]}  Ra1 {[%clk 0:00:28]} 36. Ra6 {[%clk 0:01:52]}  g5 {[%clk 0:00:26]} 37. Ra7+ {[%clk 0:01:52]}  Kg6 {[%clk 0:00:26]} 38. Bd3+ {[%clk 0:01:52]}  f5 {[%clk 0:00:26]} 39. Ra6+ {[%clk 0:01:53]}  Kg7 {[%clk 0:00:27]} 40. Bxf5 {[%clk 0:01:53]}  Bxa4 {[%clk 0:00:25]} 41. Bd7 {[%clk 0:01:49]}  Ra3+ {[%clk 0:00:23]} 42. f3 {[%clk 0:01:50]} 1-0


[Site "https://www.chess.com"]

[Event "Titled Tuesday Blitz September 13 Early 2022"]
[White "Indjic, Aleksandar"]
[Black "Grover, Sahaj"]
[WhiteFideId "911925"]
[BlackFideId "5021103"]
[WhiteElo "2592"]
[BlackElo "2432"]
[Result "1-0"]
[Round "07"]
[TimeControl "180+1"]
[Date "2022.09.13"]
[WhiteClock "0:01:25"]
[BlackClock "0:00:26"]

1. e4 {[%clk 0:03:00]}  e5 {[%clk 0:02:54]} 2. Nf3 {[%clk 0:02:59]}  Nc6 {[%clk 0:02:55]} 3. Bb5 {[%clk 0:02:58]}  a6 {[%clk 0:02:54]} 4. Ba4 {[%clk 0:02:57]}  Nf6 {[%clk 0:02:54]} 5. O-O {[%clk 0:02:57]}  Bc5 {[%clk 0:02:55]} 6. Bxc6 {[%clk 0:02:50]}  dxc6 {[%clk 0:02:51]} 7. d3 {[%clk 0:02:46]}  Qe7 {[%clk 0:02:47]} 8. Be3 {[%clk 0:02:46]}  Bd6 {[%clk 0:02:43]} 9. h3 {[%clk 0:02:45]}  h6 {[%clk 0:02:42]} 10. Nc3 {[%clk 0:02:45]}  Be6 {[%clk 0:02:40]} 11. Nd2 {[%clk 0:02:42]}  g5 {[%clk 0:02:39]} 12. Nc4 {[%clk 0:02:37]}  g4 {[%clk 0:02:25]} 13. Nxd6+ {[%clk 0:02:35]}  cxd6 {[%clk 0:02:25]} 14. h4 {[%clk 0:02:34]}  g3 {[%clk 0:02:17]} 15. fxg3 {[%clk 0:02:33]}  Ng4 {[%clk 0:02:16]} 16. Qf3 {[%clk 0:02:28]}  Rg8 {[%clk 0:02:14]} 17. b4 {[%clk 0:02:22]}  f6 {[%clk 0:01:46]} 18. a4 {[%clk 0:02:19]}  Kf7 {[%clk 0:01:46]} 19. Bb6 {[%clk 0:02:02]}  Rac8 {[%clk 0:01:31]} 20. Nd1 {[%clk 0:02:00]}  d5 {[%clk 0:01:28]} 21. Bc5 {[%clk 0:01:57]}  Qd8 {[%clk 0:01:26]} 22. a5 {[%clk 0:01:57]}  Rg6 {[%clk 0:00:55]} 23. Ne3 {[%clk 0:01:51]}  Nxe3 {[%clk 0:00:54]} 24. Qxe3 {[%clk 0:01:49]}  d4 {[%clk 0:00:53]} 25. Qf2 {[%clk 0:01:39]}  h5 {[%clk 0:00:49]} 26. Kh2 {[%clk 0:01:37]}  Qd7 {[%clk 0:00:40]} 27. Rac1 {[%clk 0:01:27]}  Rcg8 {[%clk 0:00:39]} 28. c3 {[%clk 0:01:27]}  dxc3 {[%clk 0:00:34]} 29. Rxc3 {[%clk 0:01:27]}  Rxg3 {[%clk 0:00:26]} 30. Qxf6+ {[%clk 0:01:25]} 1-0


[Site "https://www.chess.com"]

[Event "Titled Tuesday Blitz September 13 Early 2022"]
[White "Jobava, Baadur"]
[Black "Harsha Bharathakoti"]
[WhiteFideId "13601520"]
[BlackFideId "5078776"]
[WhiteElo "2582"]
[BlackElo "2523"]
[Result "0-1"]
[Round "07"]
[TimeControl "180+1"]
[Date "2022.09.13"]
[WhiteClock "0:00:05"]
[BlackClock "0:00:27"]

1. b3 {[%clk 0:03:00]}  d5 {[%clk 0:02:58]} 2. Bb2 {[%clk 0:03:01]}  Bf5 {[%clk 0:02:57]} 3. d3 {[%clk 0:03:02]}  e6 {[%clk 0:02:57]} 4. Nd2 {[%clk 0:03:03]}  h6 {[%clk 0:02:57]} 5. e4 {[%clk 0:03:03]}  Bh7 {[%clk 0:02:58]} 6. g3 {[%clk 0:03:03]}  Nf6 {[%clk 0:02:57]} 7. Bg2 {[%clk 0:03:03]}  a5 {[%clk 0:02:57]} 8. a3 {[%clk 0:03:03]}  c6 {[%clk 0:02:46]} 9. Nh3 {[%clk 0:03:03]}  Bc5 {[%clk 0:02:43]} 10. O-O {[%clk 0:03:02]}  dxe4 {[%clk 0:02:44]} 11. dxe4 {[%clk 0:03:00]}  Bd4 {[%clk 0:02:43]} 12. Bxd4 {[%clk 0:02:51]}  Qxd4 {[%clk 0:02:44]} 13. Nc4 {[%clk 0:02:52]}  Qxd1 {[%clk 0:02:44]} 14. Raxd1 {[%clk 0:02:52]}  Ke7 {[%clk 0:02:41]} 15. Nd6 {[%clk 0:02:44]}  Ra7 {[%clk 0:02:32]} 16. e5 {[%clk 0:02:34]}  Nfd7 {[%clk 0:02:21]} 17. Rd2 {[%clk 0:02:34]}  Nxe5 {[%clk 0:02:17]} 18. Nf4 {[%clk 0:02:28]}  Nbd7 {[%clk 0:01:58]} 19. Re1 {[%clk 0:02:23]}  g5 {[%clk 0:01:54]} 20. Ne2 {[%clk 0:02:17]}  Nd3 {[%clk 0:01:31]} 21. cxd3 {[%clk 0:01:51]}  Kxd6 {[%clk 0:01:31]} 22. d4 {[%clk 0:01:52]}  Nf6 {[%clk 0:01:28]} 23. Nc3 {[%clk 0:01:42]}  Rd8 {[%clk 0:01:25]} 24. Rc1 {[%clk 0:01:33]}  Ke7 {[%clk 0:01:24]} 25. Na4 {[%clk 0:01:31]}  Be4 {[%clk 0:01:21]} 26. Bf1 {[%clk 0:01:29]}  Bd5 {[%clk 0:01:18]} 27. Rb2 {[%clk 0:01:29]}  g4 {[%clk 0:01:08]} 28. Nc5 {[%clk 0:01:26]}  b6 {[%clk 0:01:06]} 29. Nd3 {[%clk 0:01:26]}  Be4 {[%clk 0:00:52]} 30. Ne5 {[%clk 0:01:25]}  Rxd4 {[%clk 0:00:53]} 31. Nxc6+ {[%clk 0:01:19]}  Bxc6 {[%clk 0:00:52]} 32. Rxc6 {[%clk 0:01:20]}  Rd6 {[%clk 0:00:46]} 33. Rc1 {[%clk 0:01:15]}  Ne4 {[%clk 0:00:38]} 34. Be2 {[%clk 0:01:10]}  h5 {[%clk 0:00:36]} 35. Kg2 {[%clk 0:01:06]}  Rad7 {[%clk 0:00:34]} 36. Bb5 {[%clk 0:01:04]}  Rd8 {[%clk 0:00:34]} 37. Re2 {[%clk 0:01:01]}  Ng5 {[%clk 0:00:31]} 38. Rec2 {[%clk 0:00:36]}  Rd1 {[%clk 0:00:30]} 39. Rxd1 {[%clk 0:00:30]}  Rxd1 {[%clk 0:00:31]} 40. h4 {[%clk 0:00:06]}  Nf3 {[%clk 0:00:27]} 41. Rc7+ {[%clk 0:00:05]}  Kd8 {[%clk 0:00:27]} 0-1


[Site "https://www.chess.com"]

[Event "Titled Tuesday Blitz September 13 Early 2022"]
[White "Koustav, Chatterjee"]
[Black "Kosakowski, Jakub"]
[WhiteFideId "25073060"]
[BlackFideId "1185080"]
[WhiteElo "2196"]
[BlackElo "2453"]
[Result "1-0"]
[Round "07"]
[TimeControl "180+1"]
[Date "2022.09.13"]
[WhiteClock "0:00:11"]
[BlackClock "0:00:04"]

1. d4 {[%clk 0:03:00]}  d5 {[%clk 0:02:57]} 2. Nf3 {[%clk 0:03:00]}  Nf6 {[%clk 0:02:57]} 3. Bf4 {[%clk 0:03:00]}  c5 {[%clk 0:02:56]} 4. e3 {[%clk 0:03:01]}  Nc6 {[%clk 0:02:55]} 5. Nbd2 {[%clk 0:03:01]}  cxd4 {[%clk 0:02:55]} 6. exd4 {[%clk 0:03:01]}  Bf5 {[%clk 0:02:55]} 7. Bb5 {[%clk 0:02:55]}  e6 {[%clk 0:02:55]} 8. c4 {[%clk 0:02:54]}  Be7 {[%clk 0:02:55]} 9. O-O {[%clk 0:02:49]}  O-O {[%clk 0:02:55]} 10. c5 {[%clk 0:02:45]}  Rc8 {[%clk 0:02:15]} 11. Qa4 {[%clk 0:02:04]}  Ne4 {[%clk 0:01:55]} 12. Nb3 {[%clk 0:01:40]}  g5 {[%clk 0:01:46]} 13. Be3 {[%clk 0:01:23]}  g4 {[%clk 0:01:45]} 14. Bxc6 {[%clk 0:00:51]}  Rxc6 {[%clk 0:01:33]} 15. Ne5 {[%clk 0:00:50]}  Rc7 {[%clk 0:01:17]} 16. Bh6 {[%clk 0:00:37]}  Re8 {[%clk 0:01:11]} 17. f3 {[%clk 0:00:37]}  gxf3 {[%clk 0:01:05]} 18. Rxf3 {[%clk 0:00:34]}  Bg5 {[%clk 0:00:36]} 19. Bxg5 {[%clk 0:00:32]}  Nxg5 {[%clk 0:00:37]} 20. Rg3 {[%clk 0:00:20]}  f6 {[%clk 0:00:37]} 21. h4 {[%clk 0:00:19]}  Rg7 {[%clk 0:00:37]} 22. hxg5 {[%clk 0:00:19]}  fxe5 {[%clk 0:00:37]} 23. dxe5 {[%clk 0:00:19]}  Rf8 {[%clk 0:00:37]} 24. Qh4 {[%clk 0:00:19]}  Be4 {[%clk 0:00:37]} 25. Nd4 {[%clk 0:00:18]}  Qe8 {[%clk 0:00:23]} 26. Rf1 {[%clk 0:00:15]}  Rxf1+ {[%clk 0:00:23]} 27. Kxf1 {[%clk 0:00:15]}  Qg6 {[%clk 0:00:23]} 28. Kg1 {[%clk 0:00:15]}  Rf7 {[%clk 0:00:23]} 29. Qh6 {[%clk 0:00:14]}  Re7 {[%clk 0:00:16]} 30. Qxg6+ {[%clk 0:00:14]}  hxg6 {[%clk 0:00:16]} 31. b4 {[%clk 0:00:14]}  Kf7 {[%clk 0:00:11]} 32. Rh3 {[%clk 0:00:13]}  Ke8 {[%clk 0:00:12]} 33. Rh8+ {[%clk 0:00:13]}  Kd7 {[%clk 0:00:12]} 34. a4 {[%clk 0:00:12]}  Rf7 {[%clk 0:00:12]} 35. b5 {[%clk 0:00:12]}  a6 {[%clk 0:00:11]} 36. Ra8 {[%clk 0:00:11]}  Rf4 {[%clk 0:00:10]} 37. Ra7 {[%clk 0:00:10]}  Rg4 {[%clk 0:00:11]} 38. Rxb7+ {[%clk 0:00:11]}  Kc8 {[%clk 0:00:11]} 39. c6 {[%clk 0:00:11]}  Rxg2+ {[%clk 0:00:12]} 40. Kf1 {[%clk 0:00:12]}  Rd2 {[%clk 0:00:08]} 41. Nxe6 {[%clk 0:00:11]}  d4 {[%clk 0:00:08]} 42. Rc7+ {[%clk 0:00:11]}  Kb8 {[%clk 0:00:08]} 43. Rd7 {[%clk 0:00:11]}  axb5 {[%clk 0:00:01]} 44. axb5 {[%clk 0:00:10]}  Bf5 {[%clk 0:00:01]} 45. Rd8+ {[%clk 0:00:10]}  Ka7 {[%clk 0:00:01]} 46. Nxd4 {[%clk 0:00:09]}  Bh3+ {[%clk 0:00:01]} 47. Ke1 {[%clk 0:00:10]}  Rd3 {[%clk 0:00:02]} 48. c7 {[%clk 0:00:09]}  Kb6 {[%clk 0:00:02]} 49. Nc6 {[%clk 0:00:09]}  Re3+ {[%clk 0:00:02]} 50. Kd2 {[%clk 0:00:10]}  Re4 {[%clk 0:00:02]} 51. c8=Q {[%clk 0:00:09]}  Bxc8 {[%clk 0:00:03]} 52. Rxc8 {[%clk 0:00:10]}  Kxb5 {[%clk 0:00:03]} 53. Kd3 {[%clk 0:00:10]}  Re1 {[%clk 0:00:04]} 54. Nd4+ {[%clk 0:00:11]}  Kb6 {[%clk 0:00:04]} 55. e6 {[%clk 0:00:11]} 1-0


[Site "https://www.chess.com"]

[Event "Titled Tuesday Blitz September 13 Early 2022"]
[White "Le, Tuan Minh"]
[Black "Bluebaum, Matthias"]
[WhiteFideId "12401153"]
[BlackFideId "24651516"]
[WhiteElo "2530"]
[BlackElo "2633"]
[Result "1-0"]
[Round "07"]
[TimeControl "180+1"]
[Date "2022.09.13"]
[WhiteClock "0:00:19"]
[BlackClock "0:00:06"]

1. d4 {[%clk 0:03:00]}  Nf6 {[%clk 0:02:59]} 2. Nf3 {[%clk 0:03:01]}  d5 {[%clk 0:02:59]} 3. Bf4 {[%clk 0:03:02]}  c5 {[%clk 0:02:58]} 4. c3 {[%clk 0:03:02]}  Nc6 {[%clk 0:02:56]} 5. e3 {[%clk 0:03:03]}  Qb6 {[%clk 0:02:55]} 6. Qc2 {[%clk 0:03:03]}  Nh5 {[%clk 0:02:53]} 7. Bg3 {[%clk 0:02:59]}  Bg4 {[%clk 0:02:42]} 8. dxc5 {[%clk 0:02:51]}  Qxc5 {[%clk 0:02:40]} 9. Nbd2 {[%clk 0:02:51]}  e6 {[%clk 0:02:33]} 10. Qa4 {[%clk 0:02:46]}  Nxg3 {[%clk 0:02:23]} 11. hxg3 {[%clk 0:02:45]}  Bf5 {[%clk 0:02:13]} 12. Nh4 {[%clk 0:02:20]}  Be7 {[%clk 0:01:46]} 13. Nxf5 {[%clk 0:02:18]}  exf5 {[%clk 0:01:47]} 14. Be2 {[%clk 0:02:13]}  g6 {[%clk 0:01:46]} 15. O-O {[%clk 0:02:13]}  h5 {[%clk 0:01:46]} 16. Nf3 {[%clk 0:02:12]}  Kf8 {[%clk 0:01:42]} 17. Rfd1 {[%clk 0:02:10]}  Rd8 {[%clk 0:01:35]} 18. Qb5 {[%clk 0:02:08]}  Qxb5 {[%clk 0:01:24]} 19. Bxb5 {[%clk 0:02:08]}  Bf6 {[%clk 0:01:25]} 20. Rd2 {[%clk 0:02:07]}  Ke7 {[%clk 0:01:15]} 21. Rad1 {[%clk 0:02:07]}  Ke6 {[%clk 0:01:16]} 22. Ne1 {[%clk 0:01:56]}  a6 {[%clk 0:01:13]} 23. Be2 {[%clk 0:01:51]}  Ne5 {[%clk 0:01:09]} 24. Bf3 {[%clk 0:01:38]}  Nxf3+ {[%clk 0:01:04]} 25. gxf3 {[%clk 0:01:39]}  Be7 {[%clk 0:00:53]} 26. Nd3 {[%clk 0:01:24]}  g5 {[%clk 0:00:46]} 27. f4 {[%clk 0:01:08]}  g4 {[%clk 0:00:36]} 28. Nc1 {[%clk 0:01:08]}  h4 {[%clk 0:00:27]} 29. Kg2 {[%clk 0:00:41]}  hxg3 {[%clk 0:00:26]} 30. fxg3 {[%clk 0:00:42]}  Rh3 {[%clk 0:00:20]} 31. Rh1 {[%clk 0:00:41]}  Rxh1 {[%clk 0:00:19]} 32. Kxh1 {[%clk 0:00:42]}  Bf6 {[%clk 0:00:16]} 33. Nb3 {[%clk 0:00:39]}  Rc8 {[%clk 0:00:15]} 34. Kg2 {[%clk 0:00:39]}  b6 {[%clk 0:00:15]} 35. a3 {[%clk 0:00:36]}  a5 {[%clk 0:00:15]} 36. Kf2 {[%clk 0:00:34]}  Rh8 {[%clk 0:00:15]} 37. Kg2 {[%clk 0:00:34]}  Rc8 {[%clk 0:00:15]} 38. Rd1 {[%clk 0:00:35]}  Rh8 {[%clk 0:00:08]} 39. Nd2 {[%clk 0:00:22]}  Rc8 {[%clk 0:00:07]} 40. a4 {[%clk 0:00:21]}  Rb8 {[%clk 0:00:06]} 41. Ra1 {[%clk 0:00:16]}  b5 {[%clk 0:00:06]} 42. axb5 {[%clk 0:00:17]}  Rxb5 {[%clk 0:00:07]} 43. Ra2 {[%clk 0:00:18]}  Kd6 {[%clk 0:00:06]} 44. Kf2 {[%clk 0:00:17]}  Kc5 {[%clk 0:00:06]} 45. Ke2 {[%clk 0:00:18]}  Rb8 {[%clk 0:00:06]} 46. Rxa5+ {[%clk 0:00:18]}  Kc6 {[%clk 0:00:05]} 47. Ra6+ {[%clk 0:00:18]}  Rb6 {[%clk 0:00:06]} 48. Rxb6+ {[%clk 0:00:18]}  Kxb6 {[%clk 0:00:07]} 49. Kd3 {[%clk 0:00:18]}  Kc5 {[%clk 0:00:07]} 50. Nb3+ {[%clk 0:00:18]}  Kd6 {[%clk 0:00:06]} 51. Nd4 {[%clk 0:00:19]} 1-0


[Site "https://www.chess.com"]

[Event "Titled Tuesday Blitz September 13 Early 2022"]
[White "Lenderman, Aleksandr"]
[Black "Belov, Vladimir"]
[WhiteFideId "2021285"]
[BlackFideId "4132394"]
[WhiteElo "2607"]
[BlackElo "2501"]
[Result "1-0"]
[Round "07"]
[TimeControl "180+1"]
[Date "2022.09.13"]
[WhiteClock "0:00:51"]
[BlackClock "0:00:11"]

1. e4 {[%clk 0:03:00]}  c5 {[%clk 0:02:59]} 2. c3 {[%clk 0:02:59]}  d5 {[%clk 0:03:00]} 3. exd5 {[%clk 0:02:57]}  Qxd5 {[%clk 0:03:00]} 4. Nf3 {[%clk 0:02:57]}  Nf6 {[%clk 0:03:00]} 5. d4 {[%clk 0:02:57]}  Bg4 {[%clk 0:03:00]} 6. Be2 {[%clk 0:02:56]}  e6 {[%clk 0:03:00]} 7. O-O {[%clk 0:02:55]}  Nc6 {[%clk 0:03:00]} 8. h3 {[%clk 0:02:55]}  Bh5 {[%clk 0:03:00]} 9. Be3 {[%clk 0:02:53]}  cxd4 {[%clk 0:03:00]} 10. cxd4 {[%clk 0:02:52]}  Be7 {[%clk 0:03:00]} 11. Nc3 {[%clk 0:02:52]}  Qd6 {[%clk 0:03:00]} 12. Qa4 {[%clk 0:02:49]}  O-O {[%clk 0:02:58]} 13. Rfd1 {[%clk 0:02:45]}  Rfd8 {[%clk 0:02:57]} 14. Rac1 {[%clk 0:02:44]}  Qb4 {[%clk 0:02:57]} 15. Qxb4 {[%clk 0:02:39]}  Nxb4 {[%clk 0:02:57]} 16. a3 {[%clk 0:02:40]}  Nbd5 {[%clk 0:02:57]} 17. Nxd5 {[%clk 0:02:16]}  Nxd5 {[%clk 0:02:56]} 18. Bd2 {[%clk 0:02:17]}  Rac8 {[%clk 0:02:52]} 19. g4 {[%clk 0:01:47]}  Bg6 {[%clk 0:02:51]} 20. Ne5 {[%clk 0:01:47]}  Bc2 {[%clk 0:02:43]} 21. Re1 {[%clk 0:01:47]}  Bb3 {[%clk 0:02:26]} 22. Rxc8 {[%clk 0:01:45]}  Rxc8 {[%clk 0:02:26]} 23. Rc1 {[%clk 0:01:46]}  Rd8 {[%clk 0:01:36]} 24. Bf3 {[%clk 0:01:38]}  f6 {[%clk 0:01:35]} 25. Nd3 {[%clk 0:01:37]}  b6 {[%clk 0:01:33]} 26. Kf1 {[%clk 0:01:28]}  Kf7 {[%clk 0:01:30]} 27. Ke2 {[%clk 0:01:27]}  Bd6 {[%clk 0:01:27]} 28. Be4 {[%clk 0:01:24]}  h6 {[%clk 0:01:26]} 29. Nb4 {[%clk 0:01:23]}  Nxb4 {[%clk 0:00:58]} 30. axb4 {[%clk 0:01:24]}  Rd7 {[%clk 0:00:38]} 31. Rc8 {[%clk 0:01:21]}  Rc7 {[%clk 0:00:32]} 32. Ra8 {[%clk 0:01:20]}  Bd5 {[%clk 0:00:30]} 33. Bxd5 {[%clk 0:01:19]}  exd5 {[%clk 0:00:31]} 34. Kd3 {[%clk 0:01:18]}  Rd7 {[%clk 0:00:21]} 35. b5 {[%clk 0:01:15]}  Kg6 {[%clk 0:00:21]} 36. Rc8 {[%clk 0:01:08]}  h5 {[%clk 0:00:21]} 37. f3 {[%clk 0:01:05]}  hxg4 {[%clk 0:00:20]} 38. hxg4 {[%clk 0:01:06]}  Kf7 {[%clk 0:00:21]} 39. f4 {[%clk 0:01:03]}  Rc7 {[%clk 0:00:17]} 40. Rd8 {[%clk 0:01:02]}  Ke7 {[%clk 0:00:17]} 41. Ra8 {[%clk 0:01:02]}  Rd7 {[%clk 0:00:14]} 42. f5 {[%clk 0:01:02]}  Rc7 {[%clk 0:00:14]} 43. g5 {[%clk 0:01:01]}  fxg5 {[%clk 0:00:14]} 44. Bxg5+ {[%clk 0:01:02]}  Kf7 {[%clk 0:00:15]} 45. Rd8 {[%clk 0:01:01]}  Be7 {[%clk 0:00:11]} 46. Bxe7 {[%clk 0:01:01]}  Kxe7 {[%clk 0:00:12]} 47. Rxd5 {[%clk 0:01:01]}  Kf6 {[%clk 0:00:13]} 48. Ke4 {[%clk 0:01:00]}  Rc1 {[%clk 0:00:13]} 49. Rd6+ {[%clk 0:01:00]}  Kf7 {[%clk 0:00:13]} 50. Rd7+ {[%clk 0:00:58]}  Kf6 {[%clk 0:00:14]} 51. Rxa7 {[%clk 0:00:58]}  Rb1 {[%clk 0:00:14]} 52. Rb7 {[%clk 0:00:59]}  Re1+ {[%clk 0:00:14]} 53. Kd5 {[%clk 0:00:57]}  Rb1 {[%clk 0:00:13]} 54. Kc6 {[%clk 0:00:55]}  Rxb2 {[%clk 0:00:13]} 55. Kxb6 {[%clk 0:00:55]}  Rc2 {[%clk 0:00:12]} 56. d5 {[%clk 0:00:54]}  Ke5 {[%clk 0:00:11]} 57. Rxg7 {[%clk 0:00:53]}  Kxd5 {[%clk 0:00:12]} 58. Kb7 {[%clk 0:00:51]}  Ke5 {[%clk 0:00:11]} 59. b6 {[%clk 0:00:51]} 1-0


[Site "https://www.chess.com"]

[Event "Titled Tuesday Blitz September 13 Early 2022"]
[White "Malek, Jan"]
[Black "Svane, Rasmus"]
[WhiteFideId "21864080"]
[BlackFideId "4657101"]
[WhiteElo "2172"]
[BlackElo "2674"]
[Result "0-1"]
[Round "07"]
[TimeControl "180+1"]
[Date "2022.09.13"]
[WhiteClock "0:00:07"]
[BlackClock "0:00:09"]

1. b3 {[%clk 0:03:00]}  d5 {[%clk 0:02:58]} 2. Bb2 {[%clk 0:03:00]}  Bg4 {[%clk 0:02:58]} 3. c4 {[%clk 0:02:54]}  e6 {[%clk 0:02:53]} 4. h3 {[%clk 0:02:51]}  Bf5 {[%clk 0:02:50]} 5. Nf3 {[%clk 0:02:48]}  h6 {[%clk 0:02:49]} 6. e3 {[%clk 0:02:45]}  Nf6 {[%clk 0:02:49]} 7. Nc3 {[%clk 0:02:43]}  c6 {[%clk 0:02:44]} 8. Be2 {[%clk 0:02:41]}  Bd6 {[%clk 0:02:43]} 9. O-O {[%clk 0:02:39]}  O-O {[%clk 0:02:43]} 10. cxd5 {[%clk 0:02:36]}  cxd5 {[%clk 0:02:41]} 11. Nd4 {[%clk 0:02:33]}  Bh7 {[%clk 0:02:41]} 12. f4 {[%clk 0:02:32]}  Nc6 {[%clk 0:02:37]} 13. Ncb5 {[%clk 0:02:29]}  Be7 {[%clk 0:02:30]} 14. Rc1 {[%clk 0:02:25]}  Qd7 {[%clk 0:02:29]} 15. Nf3 {[%clk 0:02:04]}  Rfc8 {[%clk 0:02:24]} 16. Ne5 {[%clk 0:02:03]}  Nxe5 {[%clk 0:02:24]} 17. fxe5 {[%clk 0:02:01]}  Ne4 {[%clk 0:02:06]} 18. Rxc8+ {[%clk 0:01:59]}  Rxc8 {[%clk 0:02:03]} 19. Nxa7 {[%clk 0:01:48]}  Ra8 {[%clk 0:01:58]} 20. Bd4 {[%clk 0:01:48]}  Ng3 {[%clk 0:01:28]} 21. Bb5 {[%clk 0:01:41]}  Qd8 {[%clk 0:01:17]} 22. Rf4 {[%clk 0:01:35]}  Nf5 {[%clk 0:01:16]} 23. Bd3 {[%clk 0:00:54]}  Nxd4 {[%clk 0:01:07]} 24. Bxh7+ {[%clk 0:00:54]}  Kxh7 {[%clk 0:01:08]} 25. exd4 {[%clk 0:00:54]}  Rxa7 {[%clk 0:00:58]} 26. Rxf7 {[%clk 0:00:54]}  Kg8 {[%clk 0:00:55]} 27. Qh5 {[%clk 0:00:52]}  Bf8 {[%clk 0:00:43]} 28. Qg6 {[%clk 0:00:51]}  Ra6 {[%clk 0:00:40]} 29. Rxb7 {[%clk 0:00:46]}  Qc8 {[%clk 0:00:27]} 30. Qf7+ {[%clk 0:00:19]}  Kh7 {[%clk 0:00:27]} 31. Rc7 {[%clk 0:00:18]}  Qd8 {[%clk 0:00:23]} 32. Rd7 {[%clk 0:00:18]}  Qa8 {[%clk 0:00:16]} 33. h4 {[%clk 0:00:17]}  Rxa2 {[%clk 0:00:15]} 34. Qxe6 {[%clk 0:00:17]}  Rxd2 {[%clk 0:00:12]} 35. Qf5+ {[%clk 0:00:16]}  Kg8 {[%clk 0:00:11]} 36. e6 {[%clk 0:00:15]}  Qa1+ {[%clk 0:00:08]} 37. Kh2 {[%clk 0:00:14]}  Qxd4 {[%clk 0:00:09]} 38. Qf7+ {[%clk 0:00:10]}  Kh7 {[%clk 0:00:09]} 39. Qf5+ {[%clk 0:00:10]}  Kg8 {[%clk 0:00:09]} 40. e7 {[%clk 0:00:11]}  Qxh4+ {[%clk 0:00:08]} 41. Qh3 {[%clk 0:00:08]}  Qf4+ {[%clk 0:00:07]} 42. Qg3 {[%clk 0:00:08]}  Qxg3+ {[%clk 0:00:07]} 43. Kxg3 {[%clk 0:00:09]}  Bxe7 {[%clk 0:00:08]} 44. Rxe7 {[%clk 0:00:09]}  Rd3+ {[%clk 0:00:08]} 45. Kf4 {[%clk 0:00:09]}  Rxb3 {[%clk 0:00:09]} 46. Rd7 {[%clk 0:00:08]}  Rd3 {[%clk 0:00:08]} 47. g4 {[%clk 0:00:08]}  Rd4+ {[%clk 0:00:07]} 48. Kf5 {[%clk 0:00:09]}  Kh7 {[%clk 0:00:06]} 49. Rd8 {[%clk 0:00:05]}  Rd1 {[%clk 0:00:05]} 50. Ke5 {[%clk 0:00:05]}  Re1+ {[%clk 0:00:05]} 51. Kf5 {[%clk 0:00:06]}  Rf1+ {[%clk 0:00:04]} 52. Ke5 {[%clk 0:00:06]}  Re1+ {[%clk 0:00:05]} 53. Kf5 {[%clk 0:00:07]}  Rd1 {[%clk 0:00:05]} 54. Ke5 {[%clk 0:00:07]}  d4 {[%clk 0:00:06]} 55. Rxd4 {[%clk 0:00:04]}  Rxd4 {[%clk 0:00:06]} 56. Kxd4 {[%clk 0:00:05]}  Kg6 {[%clk 0:00:07]} 57. Ke4 {[%clk 0:00:06]}  Kg5 {[%clk 0:00:07]} 58. Kf3 {[%clk 0:00:06]}  Kh4 {[%clk 0:00:08]} 59. Kf4 {[%clk 0:00:07]}  g6 {[%clk 0:00:08]} 60. Kf3 {[%clk 0:00:07]}  g5 {[%clk 0:00:09]} 0-1


[Site "https://www.chess.com"]